fUSD/lending_fUSD_20240212
["ID","MTS","AMOUNT","RATE_DAILY","PERIOD"]
[313778174,1707717044060,-585.08,0.00022952,2]
[313778175,1707717044069,-878.61,0.00022952,2]
[313778176,1707717044079,-1018.56,0.00022952,2]
[313778177,1707717044089,-474.77714884,0.00022952,2]
[313778178,1707717044103,-500.0,0.00022952,2]
[313778179,1707717044113,-1295.97,0.00022952,2]
[313778180,1707717044124,-509.16852799,0.00022952,2]
[313778181,1707717044134,-500.0,0.00022952,2]
[313778182,1707717044144,-500.0,0.00022952,2]
[313778183,1707717044154,-869.07,0.00022952,2]
[313778184,1707717044165,-612.89607437,0.00022952,2]
[313778185,1707717044174,-500.0,0.00022952,2]
[313778186,1707717044184,-500.0,0.00022952,2]
[313778187,1707717044194,-500.0,0.00022952,2]
[313778188,1707717044203,-500.0,0.00022952,2]
[313778189,1707717044213,-524.41038557,0.00022952,2]
[313778190,1707717044223,-500.0,0.00022952,2]
[313778191,1707717044232,-500.0,0.00022952,2]
[313778192,1707717044242,-1238.96,0.00022952,2]
[313778193,1707717044251,-500.0,0.00022952,2]
[313778194,1707717044261,-500.0,0.00022952,2]
[313778195,1707717044271,-500.0,0.00022952,2]
[313778196,1707717044281,-500.0,0.00022952,2]
[313778197,1707717044290,-500.0,0.00022952,2]
[313778198,1707717044300,-500.0,0.00022952,2]
[313778199,1707717044310,-500.0,0.00022952,2]
[313778200,1707717044319,-1198.38,0.00022952,2]
[313778201,1707717044330,-500.0,0.00022952,2]
[313778202,1707717044460,-500.0,0.00022952,2]
[313778203,1707717044470,-500.0,0.00022952,2]
[313778204,1707717044480,-500.0,0.00022952,2]
[313778205,1707717044491,-500.0,0.00022952,2]
[313778206,1707717044500,-500.0,0.00022952,2]
[313778207,1707717044510,-500.0,0.00022952,2]
[313778208,1707717044520,-500.0,0.00022952,2]
[313778209,1707717044529,-500.0,0.00022952,2]
[313778210,1707717044538,-516.79,0.00022952,2]
[313778211,1707717044548,-500.0,0.00022952,2]
[313778212,1707717044557,-500.0,0.00022952,2]
[313778213,1707717044566,-316.85784916,0.00022952,2]
[313778214,1707717044575,-500.0,0.00022952,2]
[313778215,1707717044585,-500.0,0.00022952,2]
[313778216,1707717044594,-500.0,0.00022952,2]
[313778217,1707717044604,-524.2537685,0.00022952,2]
[313778218,1707717044613,-500.0,0.00022952,2]
[313778219,1707717044623,-1281.89,0.00022952,2]
[313778220,1707717044633,-500.0,0.00022952,2]
[313778221,1707717044642,-500.0,0.00022952,2]
[313778222,1707717044652,-513.69534119,0.00022952,2]
[313778223,1707717044661,-500.0,0.00022952,2]
[313778224,1707717044671,-999.35,0.00022952,2]
[313778225,1707717044681,-234.89113681,0.00022952,2]
[313778226,1707717044691,-500.0,0.00022952,2]
[313778227,1707717044700,-500.0,0.00022952,2]
[313778228,1707717044709,-500.0,0.00022952,2]
[313778229,1707717044718,-500.0,0.00022952,2]
[313778230,1707717044728,-500.0,0.00022952,2]
[313778231,1707717044737,-500.0,0.00022952,2]
[313778232,1707717044747,-500.0,0.00022952,2]
[313778233,1707717044756,-500.0,0.00022952,2]
[313778234,1707717044768,-500.0,0.00022952,2]
[313778235,1707717044778,-500.0,0.00022952,2]
[313778236,1707717044787,-500.0,0.00022952,2]
[313778237,1707717044797,-1211.93,0.00022952,2]
[313778238,1707717044806,-500.0,0.00022952,2]
[313778239,1707717044815,-500.0,0.00022952,2]
[313778240,1707717044825,-500.0,0.00022952,2]
[313778241,1707717044834,-1169.95,0.00022952,2]
[313778242,1707717044843,-500.0,0.00022952,2]
[313778243,1707717044853,-528.66427468,0.00022952,2]
[313778244,1707717044862,-508.679043,0.00022952,2]
[313778245,1707717044871,-500.0,0.00022952,2]
[313778246,1707717044881,-500.0,0.00022952,2]
[313778247,1707717044890,-514.72820026,0.00022952,2]
[313778248,1707717044899,-509.1764279,0.00022952,2]
[313778249,1707717044909,-1123.56,0.00022952,2]
[313778250,1707717044918,-500.0,0.00022952,2]
[313778251,1707717044927,-600.27625091,0.00022952,2]
[313778252,1707717044936,-500.0,0.00022952,2]
[313778253,1707717044946,-500.0,0.00022952,2]
[313778254,1707717044955,-1072.99,0.00022952,2]
[313778255,1707717044965,-500.0,0.00022952,2]
[313778256,1707717044974,-500.0,0.00022952,2]
[313778257,1707717044983,-500.0,0.00022952,2]
[313778258,1707717044992,-508.84698656,0.00022952,2]
[313778259,1707717045001,-500.0,0.00022952,2]
[313778260,1707717045010,-669.51,0.00022952,2]
[313778261,1707717045019,-500.0,0.00022952,2]
[313778262,1707717045028,-500.0,0.00022952,2]
[313778263,1707717045038,-500.0,0.00022952,2]
[313778264,1707717045047,-500.0,0.00022952,2]
[313778265,1707717045057,-500.0,0.00022952,2]
[313778266,1707717045066,-500.0,0.00022952,2]
[313778267,1707717045075,-500.0,0.00022952,2]
[313778268,1707717045084,-500.0,0.00022952,2]
[313778269,1707717045093,-500.0,0.00022952,2]
[313778270,1707717045102,-500.0,0.00022952,2]
[313778271,1707717045111,-508.04895771,0.00022952,2]
[313778272,1707717045120,-500.0,0.00022952,2]
[313778273,1707717045129,-259.70779703,0.00022952,2]
[313778274,1707717045139,-500.0,0.00022952,2]
[313778275,1707717045149,-500.0,0.00022952,2]
[313778276,1707717045159,-500.0,0.00022952,2]
[313778277,1707717045168,-899.46,0.00022952,2]
[313778278,1707717045177,-500.0,0.00022952,2]
[313778279,1707717045187,-2195.77,0.00022952,2]
[313778280,1707717045196,-633.02223945,0.00022952,2]
[313778281,1707717045205,-500.0,0.00022952,2]
[313778282,1707717045214,-576.67,0.00022952,2]
[313778283,1707717045223,-500.0,0.00022952,2]
[313778284,1707717045233,-500.0,0.00022952,2]
[313778285,1707717045242,-500.0,0.00022952,2]
[313778286,1707717045251,-508.17524703,0.00022952,2]
[313778287,1707717045260,-391.27211151,0.00022952,2]
[313778288,1707717045269,-557.0,0.00022952,2]
[313778289,1707717045278,-755.27,0.00022952,2]
[313778290,1707717045288,-500.0,0.00022952,2]
[313778291,1707717045297,-500.0,0.00022952,2]
[313778292,1707717045306,-531.95144375,0.00022952,2]
[313778293,1707717045315,-500.0,0.00022952,2]
[313778294,1707717045324,-509.54498086,0.00022952,2]
[313778295,1707717045334,-1066.89,0.00022952,2]
[313778296,1707717045343,-764.0,0.00022952,2]
[313778297,1707717045352,-500.0,0.00022952,2]
[313778298,1707717045361,-525.44,0.00022952,2]
[313778299,1707717045371,-500.0,0.00022952,2]
[313778300,1707717045382,-500.0,0.00022952,2]
[313778301,1707717045391,-1140.27,0.00022952,2]
[313778302,1707717045400,-500.0,0.00022952,2]
[313778303,1707717045410,-569.29,0.00022952,2]
[313778304,1707717045419,-500.0,0.00022952,2]
[313778305,1707717045428,-500.0,0.00022952,2]
[313778306,1707717045437,-500.0,0.00022952,2]
[313778307,1707717045446,-500.0,0.00022952,2]
[313778308,1707717045456,-500.0,0.00022952,2]
[313778309,1707717045466,-500.0,0.00022952,2]
[313778310,1707717045475,-500.0,0.00022952,2]
[313778311,1707717045484,-500.0,0.00022952,2]
[313778312,1707717045493,-500.0,0.00022952,2]
[313778313,1707717045502,-500.0,0.00022952,2]
[313778314,1707717045511,-500.0,0.00022952,2]
[313778315,1707717045520,-1113.29,0.00022952,2]
[313778316,1707717045529,-500.0,0.00022952,2]
[313778317,1707717045538,-505.98160668,0.00022952,2]
[313778318,1707717045548,-500.0,0.00022952,2]
[313778319,1707717045557,-500.0,0.00022952,2]
[313778320,1707717045566,-500.0,0.00022952,2]
[313778321,1707717045575,-500.0,0.00022952,2]
[313778322,1707717045584,-498.93989744,0.00022952,2]
[313778323,1707717045593,-513.20608241,0.00022952,2]
[313778324,1707717045602,-500.0,0.00022952,2]
[313778325,1707717045611,-500.0,0.00022952,2]
[313778326,1707717045621,-500.0,0.00022952,2]
[313778327,1707717045630,-500.0,0.00022952,2]
[313778328,1707717045640,-500.0,0.00022952,2]
[313778329,1707717045649,-402.85417004,0.00022952,2]
[313778330,1707717045659,-500.0,0.00022952,2]
[313778331,1707717045668,-155.57536319,0.00022952,2]
[313778332,1707717045677,-509.84609185,0.00022952,2]
[313778333,1707717045687,-500.0,0.00022952,2]
[313778334,1707717045696,-500.0,0.00022952,2]
[313778335,1707717045705,-500.0,0.00022952,2]
[313778336,1707717045715,-500.0,0.00022952,2]
[313778337,1707717045724,-2051.86,0.00022952,2]
[313778338,1707717045733,-514.88912735,0.00022952,2]
[313778339,1707717045743,-500.0,0.00022952,2]
[313778340,1707717045752,-500.0,0.00022952,2]
[313778341,1707717045761,-521.59406458,0.00022952,2]
[313778342,1707717045771,-500.0,0.00022952,2]
[313778343,1707717045780,-500.0,0.00022952,2]
[313778344,1707717045790,-254.60692919,0.00022952,2]
[313778345,1707717045800,-509.03263562,0.00022952,2]
[313778346,1707717045810,-500.0,0.00022952,2]
[313778347,1707717045819,-500.0,0.00022952,2]
[313778348,1707717045829,-500.0,0.00022952,2]
[313778349,1707717045839,-500.0,0.00022952,2]
[313778350,1707717045848,-500.0,0.00022952,2]
[313778351,1707717045857,-1082.88,0.00022952,2]
[313778352,1707717045866,-597.99624183,0.00022952,2]
[313778353,1707717045875,-500.0,0.00022952,2]
[313778354,1707717045885,-526.64,0.00022952,2]
[313778355,1707717045894,-500.0,0.00022952,2]
[313778356,1707717045903,-500.0,0.00022952,2]
[313778357,1707717045913,-3160.65,0.00022952,2]
[313778358,1707717045924,-507.27,0.00022952,2]
[313778359,1707717045933,-500.0,0.00022952,2]
[313778360,1707717045943,-500.0,0.00022952,2]
[313778361,1707717045952,-500.0,0.00022952,2]
[313778362,1707717045961,-923.71,0.00022952,2]
[313778364,1707717045970,-500.0,0.00022952,2]
[313778365,1707717045979,-2268.86,0.00022952,2]
[313778366,1707717045987,-500.0,0.00022952,2]
[313778367,1707717045997,-542.27731167,0.00022952,2]
[313778368,1707717046006,-500.0,0.00022952,2]
[313778369,1707717046016,-510.03494265,0.00022952,2]
[313778370,1707717046025,-500.0,0.00022952,2]
[313778371,1707717046035,-500.0,0.00022952,2]
[313778372,1707717046044,-500.0,0.00022952,2]
[313778373,1707717046054,-500.0,0.00022952,2]
[313778374,1707717046062,-500.0,0.00022952,2]
[313778375,1707717046072,-500.0,0.00022952,2]
[313778376,1707717046081,-500.0,0.00022952,2]
[313778377,1707717046091,-500.0,0.00022952,2]
[313778378,1707717046101,-500.0,0.00022952,2]
[313778379,1707717046110,-500.0,0.00022952,2]
[313778380,1707717046119,-611.04,0.00022952,2]
[313778381,1707717046128,-500.0,0.00022952,2]
[313778382,1707717046138,-500.0,0.00022952,2]
[313778383,1707717046147,-500.0,0.00022952,2]
[313778384,1707717046156,-500.0,0.00022952,2]
[313778385,1707717046165,-500.0,0.00022952,2]
[313778386,1707717046174,-500.0,0.00022952,2]
[313778387,1707717046183,-500.0,0.00022952,2]
[313778388,1707717046192,-520.26606226,0.00022952,2]
[313778389,1707717046201,-510.57065754,0.00022952,2]
[313778390,1707717046211,-840.43,0.00022952,2]
[313778391,1707717046220,-500.0,0.00022952,2]
[313778392,1707717046229,-513.30824803,0.00022952,2]
[313778393,1707717046239,-500.0,0.00022952,2]
[313778394,1707717046248,-500.0,0.00022952,2]
[313778395,1707717046257,-500.0,0.00022952,2]
[313778396,1707717046266,-505.92077399,0.00022952,2]
[313778397,1707717046276,-500.0,0.00022952,2]
[313778398,1707717046285,-500.0,0.00022952,2]
[313778399,1707717046294,-500.0,0.00022952,2]
[313778400,1707717046303,-500.0,0.00022952,2]
[313778401,1707717046312,-500.0,0.00022952,2]
[313778402,1707717046321,-610.72,0.00022952,2]
[313778403,1707717046331,-500.0,0.00022952,2]
[313778404,1707717046340,-500.0,0.00022952,2]
[313778405,1707717046349,-544.23,0.00022952,2]
[313778406,1707717046358,-500.0,0.00022952,2]
[313778407,1707717046367,-504.62,0.00022952,2]
[313778408,1707717046379,-500.0,0.00022952,2]
[313778409,1707717046389,-500.0,0.00022952,2]
[313778410,1707717046398,-507.08168164,0.00022952,2]
[313778411,1707717046408,-500.0,0.00022952,2]
[313778412,1707717046418,-500.0,0.00022952,2]
[313778413,1707717046427,-500.0,0.00022952,2]
[313778414,1707717046436,-500.0,0.00022952,2]
[313778415,1707717046446,-701.65,0.00022952,2]
[313778417,1707717046456,-500.0,0.00022952,2]
[313778418,1707717046465,-500.0,0.00022952,2]
[313778419,1707717046474,-596.44,0.00022952,2]
[313778420,1707717046484,-500.0,0.00022952,2]
[313778421,1707717046494,-517.02641242,0.00022952,2]
[313778422,1707717046503,-500.0,0.00022952,2]
[313778423,1707717046513,-500.0,0.00022952,2]
[313778424,1707717046523,-464.2124681,0.00022952,2]
[313778425,1707717046533,-500.0,0.00022952,2]
[313778426,1707717046542,-1331.61,0.00022952,2]
[313778427,1707717046551,-500.0,0.00022952,2]
[313778428,1707717046561,-601.81,0.00022952,2]
[313778429,1707717046570,-500.0,0.00022952,2]
[313778430,1707717046579,-670.78,0.00022952,2]
[313778431,1707717046589,-731.84,0.00022952,2]
[313778432,1707717046598,-503.61031405,0.00022952,2]
[313778433,1707717046607,-500.0,0.00022952,2]
[313778434,1707717046617,-1148.13,0.00022952,2]
[313778435,1707717046627,-500.0,0.00022952,2]
[313778436,1707717046636,-500.0,0.00022952,2]
[313778437,1707717046646,-500.0,0.00022952,2]
[313778438,1707717046656,-500.0,0.00022952,2]
[313778439,1707717046666,-609.61,0.00022952,2]
[313778440,1707717046675,-500.0,0.00022952,2]
[313778441,1707717046685,-500.0,0.00022952,2]
[313778442,1707717046695,-500.0,0.00022952,2]
[313778443,1707717046705,-500.0,0.00022952,2]
[313778444,1707717046715,-1518.94,0.00022952,2]
[313778445,1707717046725,-587.74,0.00022952,2]
[313778446,1707717046734,-576.70156606,0.00022952,2]
[313778447,1707717046744,-611.74,0.00022952,2]
[313778448,1707717046754,-500.0,0.00022952,2]
[313778449,1707717046764,-500.0,0.00022952,2]
[313778450,1707717046773,-514.5475619,0.00022952,2]
[313778451,1707717046783,-630.31,0.00022952,2]
[313778452,1707717046793,-1679.99,0.00022952,2]
[313778453,1707717046802,-500.0,0.00022952,2]
[313778454,1707717046812,-500.0,0.00022952,2]
[313778455,1707717046822,-515.27627019,0.00022952,2]
[313778456,1707717046832,-520.48849231,0.00022952,2]
[313778457,1707717046842,-525.13596596,0.00022952,2]
[313778458,1707717046851,-558.74832074,0.00022952,2]
[313778459,1707717046861,-500.0,0.00022952,2]
[313778460,1707717046870,-500.0,0.00022952,2]
[313778461,1707717046880,-554.22920689,0.00022952,2]
[313778462,1707717046889,-544.79788063,0.00022952,2]
[313778463,1707717046899,-641.92,0.00022952,2]
[313778464,1707717046908,-500.0,0.00022952,2]
[313778465,1707717046918,-500.0,0.00022952,2]
[313778466,1707717046927,-500.0,0.00022952,2]
[313778467,1707717046937,-874.78,0.00022952,2]
[313778468,1707717046946,-604.51,0.00022952,2]
[313778469,1707717046956,-500.0,0.00022952,2]
[313778470,1707717046965,-500.0,0.00022952,2]
[313778471,1707717046974,-716.65,0.00022952,2]
[313778472,1707717046984,-561.93486518,0.00022952,2]
[313778473,1707717046994,-500.0,0.00022952,2]
[313778474,1707717047003,-577.95,0.00022952,2]
[313778475,1707717047012,-500.0,0.00022952,2]
[313778476,1707717047022,-500.0,0.00022952,2]
[313778477,1707717047032,-516.39834931,0.00022952,2]
[313778478,1707717047041,-500.0,0.00022952,2]
[313778479,1707717047052,-532.45730066,0.00022952,2]
[313778480,1707717047061,-500.0,0.00022952,2]
[313778481,1707717047070,-500.0,0.00022952,2]
[313778482,1707717047080,-725.48,0.00022952,2]
[313778483,1707717047090,-500.0,0.00022952,2]
[313778484,1707717047099,-500.0,0.00022952,2]
[313778485,1707717047109,-523.82,0.00022952,2]
[313778486,1707717047118,-509.86449076,0.00022952,2]
[313778487,1707717047127,-500.0,0.00022952,2]
[313778488,1707717047137,-500.0,0.00022952,2]
[313778489,1707717047147,-500.0,0.00022953,2]
[313778490,1707717047156,-491.91297872,0.00022953,2]
[313778491,1707717047167,-500.0,0.00022953,2]
[313778492,1707717047176,-203.48657405,0.00022953,2]
[313778493,1707717047186,-1000.0,0.00022953,2]
[313778494,1707717047196,-175.40920118,0.00022953,2]
[313778495,1707717047206,-576.15263527,0.00022953,9]
[313778496,1707717047215,-500.0,0.00022953,2]
[313778497,1707717047225,-301.6306642,0.00022953,2]
[313778498,1707717047234,-160.78701383,0.00022953,2]
[313778499,1707717047243,-500.0,0.00022953,2]
[313778500,1707717047253,-502.65276461,0.00022953,2]
[313778501,1707717047263,-1000.0,0.00022953,2]
[313778502,1707717047272,-500.0,0.00022953,2]
[313778503,1707717047282,-255.51779465,0.00022953,2]
[313778504,1707717047291,-500.0,0.00022953,2]
[313778505,1707717047301,-500.0,0.00022953,2]
[313778506,1707717047310,-502.47383897,0.00022953,2]
[313778507,1707717047320,-500.0,0.00022953,2]
[313778508,1707717047329,-618.53265966,0.00022953,2]
[313778509,1707717047339,-500.0,0.00022953,2]
[313778510,1707717047348,-500.0,0.00022953,2]
[313778511,1707717047358,-500.08509483,0.00022953,2]
[313778512,1707717047368,-910.26,0.00022953,2]
[313778513,1707717047379,-500.0,0.00022953,2]
[313778514,1707717047389,-500.0,0.00022953,2]
[313778515,1707717047398,-575.59,0.00022953,2]
[313778516,1707717047408,-606.07,0.00022953,2]
[313778517,1707717047418,-500.0,0.00022953,2]
[313778518,1707717047427,-649.32,0.00022953,2]
[313778519,1707717047437,-984.24,0.00022953,2]
[313778520,1707717047446,-500.0,0.00022953,2]
[313778521,1707717047456,-500.0,0.00022953,2]
[313778522,1707717047465,-668.7,0.00022953,2]
[313778523,1707717047474,-552.75,0.00022953,2]
[313778524,1707717047484,-925.61,0.00022953,2]
[313778525,1707717047493,-522.70198912,0.00022953,2]
[313778526,1707717047503,-500.0,0.00022953,2]
[313778527,1707717047513,-588.25,0.00022953,2]
[313778528,1707717047522,-613.98,0.00022953,2]
[313778529,1707717047531,-1025.98,0.00022953,2]
[313778530,1707717047541,-965.22,0.00022953,2]
[313778531,1707717047551,-500.0,0.00022953,2]
[313778532,1707717047560,-500.0,0.00022953,2]
[313778533,1707717047569,-500.0,0.00022953,2]
[313778534,1707717047579,-500.0,0.00022953,2]
[313778535,1707717047589,-500.0,0.00022953,2]
[313778536,1707717047598,-500.0,0.00022953,2]
[313778537,1707717047608,-500.0,0.00022953,2]
[313778538,1707717047618,-500.0,0.00022953,2]
[313778539,1707717047628,-500.0,0.00022953,2]
[313778540,1707717047638,-500.0,0.00022953,2]
[313778541,1707717047648,-510.27479852,0.00022953,2]
[313778542,1707717047658,-500.0,0.00022953,2]
[313778543,1707717047669,-500.0,0.00022953,2]
[313778544,1707717047679,-254.74055589,0.00022953,2]
[313778545,1707717047689,-500.0,0.00022953,2]
[313778546,1707717047699,-500.0,0.00022953,2]
[313778547,1707717047709,-500.0,0.00022953,2]
[313778548,1707717047719,-500.0,0.00022953,2]
[313778549,1707717047728,-500.0,0.00022953,2]
[313778550,1707717047738,-500.0,0.00022953,2]
[313778551,1707717047748,-500.0,0.00022953,2]
[313778552,1707717047758,-500.0,0.00022953,2]
[313778553,1707717047767,-500.0,0.00022953,2]
[313778554,1707717047777,-810.81,0.00022953,2]
[313778555,1707717047787,-500.0,0.00022953,2]
[313778556,1707717047797,-500.0,0.00022953,2]
[313778557,1707717047807,-135336.83937744,0.00022953,2]
[313778558,1707717047817,-207050.36342179,0.00022954,2]
[313778559,1707717047827,-12008.20447394,0.00022958,2]
[313778560,1707717047837,-206.03430498,0.00022958,2]
[313778561,1707717047847,-274.69961544,0.00022958,2]
[313778562,1707717047857,-280.7206658,0.00022958,2]
[313778563,1707717047867,-246.79691513,0.00022965,2]
[313778564,1707717047877,-204.16171996,0.00022965,2]
[313778565,1707717047887,-288.10562221,0.00022965,2]
[313778566,1707717047896,-306.74243955,0.00022966,2]
[313778567,1707717047907,-338.78849299,0.00022966,2]
[313778568,1707717047916,-345.88101573,0.00022966,2]
[313778569,1707717047926,-157.79834007,0.00022966,2]
[313778570,1707717047936,-229.10667362,0.00022966,2]
[313778571,1707717047946,-156.45755543,0.00022966,2]
[313778572,1707717047955,-500.0,0.00022966,2]
[313778573,1707717047965,-500.0,0.00022967,2]
[313778574,1707717047974,-532.90177371,0.00022967,2]
[313778575,1707717047983,-511.91122068,0.00022967,2]
[313778576,1707717047993,-500.0,0.00022967,2]
[313778577,1707717048003,-517.85119009,0.00022967,2]
[313778578,1707717048012,-513.42573234,0.00022967,2]
[313778579,1707717048021,-510.13148124,0.00022967,2]
[313778580,1707717048031,-500.0,0.00022967,2]
[313778581,1707717048040,-517.94962813,0.00022967,2]
[313778582,1707717048049,-620.58432005,0.00022967,2]
[313778583,1707717048059,-507.31600792,0.00022967,2]
[313778584,1707717048069,-523.71706224,0.00022967,2]
[313778585,1707717048078,-518.12737462,0.00022967,2]
[313778586,1707717048087,-539.12095348,0.00022967,2]
[313778587,1707717048097,-529.37460612,0.00022967,2]
[313778588,1707717048107,-506.40237973,0.00022967,2]
[313778589,1707717048116,-500.0,0.00022967,2]
[313778590,1707717048126,-527.32015523,0.00022967,2]
[313778591,1707717048136,-500.0,0.00022967,2]
[313778592,1707717048146,-531.54889538,0.00022967,2]
[313778593,1707717048156,-517.42676119,0.00022967,2]
[313778594,1707717048165,-500.0,0.00022967,2]
[313778595,1707717048175,-500.0,0.00022967,2]
[313778596,1707717048185,-500.0,0.00022967,2]
[313778597,1707717048195,-519.44366752,0.00022967,2]
[313778598,1707717048204,-500.0,0.00022967,2]
[313778599,1707717048214,-500.0,0.00022967,2]
[313778600,1707717048224,-500.0,0.00022967,2]
[313778601,1707717048234,-500.0,0.00022967,2]
[313778602,1707717048244,-503.43614115,0.00022967,2]
[313778603,1707717048254,-508.47917179,0.00022967,2]
[313778604,1707717048264,-513.58384527,0.00022967,2]
[313778605,1707717048273,-521.64998983,0.00022967,2]
[313778606,1707717048283,-500.0,0.00022967,2]
[313778607,1707717048293,-500.0,0.00022967,2]
[313778608,1707717048302,-500.0,0.00022967,2]
[313778609,1707717048312,-523.93258339,0.00022967,2]
[313778610,1707717048322,-500.0,0.00022967,2]
[313778611,1707717048331,-503.12366077,0.00022967,2]
[313778612,1707717048341,-523.24351512,0.00022967,2]
[313778613,1707717048351,-641.06,0.00022967,2]
[313778614,1707717048361,-507.89254766,0.00022967,2]
[313778615,1707717048373,-612.36,0.00022967,2]
[313778616,1707717048383,-508.02059536,0.00022967,2]
[313778617,1707717048393,-500.0,0.00022967,2]
[313778618,1707717048402,-500.0,0.00022967,2]
[313778619,1707717048412,-500.0,0.00022967,2]
[313778620,1707717048422,-500.0,0.00022967,2]
[313778621,1707717048433,-500.0,0.00022967,2]
[313778622,1707717048442,-500.0,0.00022967,2]
[313778623,1707717048452,-500.0,0.00022967,2]
[313778624,1707717048462,-500.0,0.00022967,2]
[313778625,1707717048472,-500.0,0.00022967,2]
[313778626,1707717048482,-500.0,0.00022967,2]
[313778627,1707717048492,-500.0,0.00022967,2]
[313778628,1707717048502,-611.68,0.00022967,2]
[313778629,1707717048512,-500.0,0.00022967,2]
[313778630,1707717048521,-500.0,0.00022967,2]
[313778631,1707717048530,-543.90396625,0.00022967,2]
[313778632,1707717048541,-500.0,0.00022967,2]
[313778633,1707717048551,-518.84028249,0.00022967,2]
[313778634,1707717048561,-163.90551057,0.00022967,2]
[313778635,1707717048570,-500.0,0.00022967,2]
[313778636,1707717048580,-696.08,0.00022967,2]
[313778637,1707717048589,-500.0,0.00022967,2]
[313778638,1707717048802,-500.0,0.00022967,2]
[313778639,1707717048812,-500.0,0.00022967,2]
[313778640,1707717048822,-500.0,0.00022967,2]
[313778641,1707717048832,-500.0,0.00022967,2]
[313778642,1707717048842,-500.0,0.00022967,2]
[313778643,1707717048851,-733.54,0.00022967,2]
[313778644,1707717048860,-500.0,0.00022967,2]
[313778645,1707717048871,-273.64,0.0002298,2]
[313778646,1707717048880,-411.41,0.00022986,2]
[313778647,1707717048890,-411.41,0.00022986,2]
[313778648,1707717048899,-313.27889739,0.00022999,2]
[313778649,1707717048908,-500.0,0.00022999,2]
[313778650,1707717048918,-500.0,0.00022999,2]
[313778651,1707717048927,-500.0,0.00022999,2]
[313778652,1707717048937,-500.0,0.00022999,2]
[313778653,1707717048946,-150.0,0.00022999,2]
[313778654,1707717048956,-150.0,0.00022999,2]
[313778655,1707717048965,-48019.86548637,0.00023,2]
[313778656,1707717049565,-2262.91100688,0.0002295,2]
[313778657,1707717049577,-363.98283096,0.0002295,2]
[313778658,1707717049589,-635.96349285,0.0002295,2]
[313778659,1707717049605,-814.59856868,0.0002295,2]
[313778660,1707717049617,-959.20485873,0.0002295,2]
[313778661,1707717049639,-570.5792419,0.0002295,2]
[313778662,1707717049648,-444.6207569,0.00023,2]
[313778663,1707717049660,-19817.88482359,0.00023,2]
[313778664,1707717049704,-250.82117665,0.00022952,2]
[313778665,1707717049714,-93.37981581,0.00023,2]
[313778666,1707717050448,-500.0,0.0002295,2]
[313778667,1707717050460,-500.0,0.00022952,2]
[313778668,1707717050469,-7297.88062454,0.00023,2]
[313778669,1707717050482,-5426.30027645,0.00023,2]
[313778670,1707717050494,-370.78286728,0.00023,2]
[313778671,1707717050508,-23540.35565836,0.00023,2]
[313778672,1707717050521,-9245.30500987,0.00023,2]
[313778673,1707717050543,-1408.55099016,0.00022405,2]
[313778674,1707717050552,-22545.49222446,0.00023,2]
[313778675,1707717050564,-507.76928861,0.00023,2]